Name,Sub Group,Service Area's,Expense Type,Narrative,Date,Transaction Number,Amount,Supplier Name,Supplier Ref,Period ,Year
Allerdale Borough Council,15810,Supplies & Services,IT Services,Software Licences,20/12/2018,419022,720,VAADHOO LIMITED,A02268,10,2018
Allerdale Borough Council,16150,Supplies & Services,Town Centre Management,General Promotions,02/01/2019,419023,250,HER CITI,A00441,10,2018
Allerdale Borough Council,33113,Income,Building Control - Chargeable,Building Control Fees Income,02/01/2019,419024,105,Redacted information - included personal information ,M01550,10,2018
Allerdale Borough Council,15501,Supplies & Services,Strategic Priorities,Consultants Fees,02/01/2019,419025,93237.78,PERFECT CIRCLE JV LTD,A02478,10,2018
Allerdale Borough Council,16003,Supplies & Services,Off-street - Owned,Security of Cash Movements,02/01/2019,419026,727.04,G4S CASH SOLUTIONS (UK) LTD,A02421,10,2018
Allerdale Borough Council,14105,Transport,Allerdale Fleet,"Fuel, Lubricants & Consumables",09/01/2019,419027,114.17,MICHELDEVER TYRE SERVICES T/A P&R AUTOCENTRE,A02368,10,2018
Allerdale Borough Council,16005,Supplies & Services,Off-street - Owned,Card Payment Charges,02/01/2019,419028,299.72,COBALT TELEPHONE TECHNOLOGY,A01008,10,2018
Allerdale Borough Council,10110,Employee Costs,Commissioning Support Pay Group,Salary Sacrifice,02/01/2019,419029,2387.52,TUSKERDIRECT LTD,A02186,10,2018
Allerdale Borough Council,20101,Third Party Payments,Recycling,Cleansing Contract,16/01/2019,419030,11085.5,CUMBRIA WASTE MANAGEMENT LTD,A01304,10,2018
Allerdale Borough Council,15601,Supplies & Services,Electoral Registration,Postage,02/01/2019,419031,256.2,ROYAL MAIL LETTERS,X00021,10,2018
Allerdale Borough Council,20101,Third Party Payments,Recycling,Cleansing Contract,16/01/2019,419032,-11085.5,CUMBRIA WASTE MANAGEMENT LTD,A01304,10,2018
Allerdale Borough Council,33118,Income,Off-street - Owned,Car Parks - Season Tickets Income,09/01/2019,419033,3.33,Redacted information - included personal information ,M01551,10,2018
Allerdale Borough Council,33118,Income,Off-street - Owned,Car Parks - Season Tickets Income,09/01/2019,419034,16.58,Redacted information - included personal information ,M01552,10,2018
Allerdale Borough Council,15400,Supplies & Services,Multi-storey Car Park,"Budget-Printing,Stationery & Office Supp",09/01/2019,419035,135,METRIC GROUP LTD,A00568,10,2018
Allerdale Borough Council,12305,Premises,Corporate Property Maintenance,Inspections and Services,09/01/2019,419036,40.9,REFRIGERATION (MITTON) LTD,C00012,10,2018
Allerdale Borough Council,12101,Premises,Car Parks Inspection & Maintenance,External Maintenance & Decoration,09/01/2019,419037,279.7,STOBBARTS LIMITED,C00204,10,2018
Allerdale Borough Council,12202,Premises,MSCP Utilities & Maint fund,Electrical Repairs and Service,09/01/2019,419038,2574.2,JJ GROUP (CONTRACTING) LTD,C00038,10,2018
Allerdale Borough Council,12101,Premises,Corporate Property Maintenance,External Maintenance & Decoration,09/01/2019,419039,200,Redacted information - included personal information ,A00442,10,2018
Allerdale Borough Council,15516,Supplies & Services,Insurances,Insurance Services,09/01/2019,419040,715,ZURICH MUNICIPAL,A00429,10,2018
Allerdale Borough Council,20100,Third Party Payments,Corporate Management,Budget-Partnership Services,09/01/2019,419041,14916,GRANT THORNTON UK LLP,A01736,10,2018
Allerdale Borough Council,20100,Third Party Payments,Corporate Improvement Team,Budget-Partnership Services,09/01/2019,419042,1522.73,CUMBRIA CC,A00066,10,2018
Allerdale Borough Council,20300,Third Party Payments,Parks and Grounds Maintenance,Budget-Contract Services,23/01/2019,419043,56935.33,TIVOLI GROUP LTD,A02568,10,2018
Allerdale Borough Council,12405,Premises,Homelessness,Rentals and Lease Charges,09/01/2019,419044,1201.76,HOME GROUP LTD,A00423,10,2018
Allerdale Borough Council,16150,Supplies & Services,Solway AONB Other Projects,General Promotions,09/01/2019,419045,90,JOHN J RUDD & SON LIMITED,A02597,10,2018
Allerdale Borough Council,15810,Supplies & Services,Risk Management,Software Licences,30/01/2019,419046,3756.16,EGTON MEDICAL INFORMATION SYSTEMS LTD T/A EGTON DIGITAL,A02404,10,2018
Allerdale Borough Council,33118,Income,Off-street - Owned,Car Parks - Season Tickets Income,09/01/2019,419047,6.5,Redacted information - included personal information ,M01553,10,2018
Allerdale Borough Council,16102,Supplies & Services,Social Impact Investment Fund,Regeneration Initiatives,09/01/2019,419048,10000,BOLLARD PROOF LTD,M01554,10,2018
Allerdale Borough Council,15101,Supplies & Services,Off-street - Owned,Equipment Costs,09/01/2019,419049,3390,CHIPSIDE LIMITED,A00004,10,2018
Allerdale Borough Council,10204,Employee Costs,Allerdale Options,Staff Reward Payments,09/01/2019,419050,765,CARNEGIE WORKINGTON LTD (CAFE),A02616,10,2018
Allerdale Borough Council,15101,Supplies & Services,Sports Development,Equipment Costs,23/01/2019,419051,1503,TIVOLI GROUP LTD,A02568,10,2018
Allerdale Borough Council,15101,Supplies & Services,Off-street - Owned,Equipment Costs,09/01/2019,419052,926.98,CHIPSIDE LIMITED,A00004,10,2018
Allerdale Borough Council,10114,Employee Costs,"Business Support Unit, Devt Services",Agency to Cover Established Post,09/01/2019,419053,180.48,ADECCO RECRUITMENT,A00188,10,2018
Allerdale Borough Council,33104,Income,Bereavement Services,Cemetery Granting of Burial Right Income,09/01/2019,419054,10,Redacted information - included personal information ,M01555,10,2018
Allerdale Borough Council,15501,Supplies & Services,Strategic Priorities,Consultants Fees,09/01/2019,419055,10896.3,BLOOM PROCUREMENT SERVICES LTD,A02360,10,2018
Allerdale Borough Council,12101,Premises,Environmental Initiatives,External Maintenance & Decoration,09/01/2019,419056,369.61,Redacted information - included personal information ,A00176,10,2018
Allerdale Borough Council,15302,Supplies & Services,Property Services Pay Group,Protective Clothing,09/01/2019,419057,172.52,ARCO LIMITED ,A00045,10,2018
Allerdale Borough Council,12101,Premises,Corporate Property Maintenance,External Maintenance & Decoration,09/01/2019,419058,4850,ASHCROFT DEMOLITION (CUMBRIA) LTD,C00197,10,2018
Allerdale Borough Council,14200,Transport,Members Services,Budget-Travel,09/01/2019,419059,130,REAYS COACHES LTD,A01280,10,2018
Allerdale Borough Council,12405,Premises,Customer Services Pay Group,Rentals and Lease Charges,09/01/2019,419060,1750,COCKERMOUTH TOWN COUNCIL,A00586,10,2018
Allerdale Borough Council,16001,Supplies & Services,Banking and Interest,Bank Charges and Fees,09/01/2019,419061,15.82,ALLPAY.NET LIMITED,A00714,10,2018
Allerdale Borough Council,16001,Supplies & Services,Banking and Interest,Bank Charges and Fees,09/01/2019,419062,15.82,ALLPAY.NET LIMITED,A00714,10,2018
Allerdale Borough Council,16001,Supplies & Services,Banking and Interest,Bank Charges and Fees,09/01/2019,419063,15.82,ALLPAY.NET LIMITED,A00714,10,2018
Allerdale Borough Council,16001,Supplies & Services,Banking and Interest,Bank Charges and Fees,09/01/2019,419064,18.5,ALLPAY.NET LIMITED,A00714,10,2018
Allerdale Borough Council,16001,Supplies & Services,Banking and Interest,Bank Charges and Fees,09/01/2019,419065,18.5,ALLPAY.NET LIMITED,A00714,10,2018
Allerdale Borough Council,16001,Supplies & Services,Banking and Interest,Bank Charges and Fees,09/01/2019,419066,19.89,ALLPAY.NET LIMITED,A00714,10,2018
Allerdale Borough Council,16001,Supplies & Services,Banking and Interest,Bank Charges and Fees,09/01/2019,419067,28.76,ALLPAY.NET LIMITED,A00714,10,2018
Allerdale Borough Council,16001,Supplies & Services,Banking and Interest,Bank Charges and Fees,09/01/2019,419068,30.57,ALLPAY.NET LIMITED,A00714,10,2018
Allerdale Borough Council,16001,Supplies & Services,Banking and Interest,Bank Charges and Fees,09/01/2019,419069,52.99,ALLPAY.NET LIMITED,A00714,10,2018
Allerdale Borough Council,16001,Supplies & Services,Banking and Interest,Bank Charges and Fees,09/01/2019,419070,1395.4,ALLPAY.NET LIMITED,A00714,10,2018
Allerdale Borough Council,20150,Third Party Payments,Footways,General Partnership Service Fees,09/01/2019,419071,260,Redacted information - included personal information ,A00242,10,2018
Allerdale Borough Council,50000,Capital Expenditure,Brow Top Enhancements,Capital Programme,09/01/2019,419072,8848,GROUNDWORK NORTH EAST,A01805,10,2018
Allerdale Borough Council,15401,Supplies & Services,Corporate Postage and Stationary,General Stationery,23/01/2019,419073,370,LYRECO,A00043,10,2018
Allerdale Borough Council,15401,Supplies & Services,Corporate Postage and Stationary,General Stationery,23/01/2019,419074,174.14,LYRECO,A00043,10,2018
Allerdale Borough Council,15401,Supplies & Services,Corporate Postage and Stationary,General Stationery,23/01/2019,419075,1.6,LYRECO,A00043,10,2018
Allerdale Borough Council,33112,Income,Planning and Development,Planning Fees Income,09/01/2019,419076,206,Redacted information - included personal information ,M01261,10,2018
Allerdale Borough Council,12101,Premises,Corporate Property Maintenance,External Maintenance & Decoration,09/01/2019,419077,105.4,S K DRAINAGE SOLUTIONS LTD,A02612,10,2018
Allerdale Borough Council,15502,Supplies & Services,Housing & Health Pay Group,Land Registry Fees,17/01/2019,419078,72,HM LAND REGISTRY,A00505,10,2018
Allerdale Borough Council,16350,Supplies & Services,Chief Executive,Miscellaneous Expenses,09/01/2019,419080,50,WEST CUMBRIA CARERS,M01158,10,2018
Allerdale Borough Council,15811,Supplies & Services,IT Services,Software Maintenance,09/01/2019,419081,174.68,PHOENIX SOFTWARE LTD,A00229,10,2018
Allerdale Borough Council,15811,Supplies & Services,IT Services,Software Maintenance,16/01/2019,419082,317,SAGE (UK) LTD,A01911,10,2018
Allerdale Borough Council,15100,Supplies & Services,Museums,"Budget-Equipment, Furniture & Materials",09/01/2019,419083,170.6,KESWICK MUSEUM & ART GALLERY,A00337,10,2018
Allerdale Borough Council,50000,Capital Expenditure,Total Finance System - Licence,Capital Programme,09/01/2019,419084,28000,TOTALMOBILE LIMITED,A01712,10,2018
Allerdale Borough Council,20150,Third Party Payments,Museums,General Partnership Service Fees,09/01/2019,419085,7500,WORKINGTON HERITAGE GROUP LTD,A00339,10,2018
Allerdale Borough Council,15501,Supplies & Services,Street Cleansing,Consultants Fees,09/01/2019,419086,37,DUNDAS CHEMICAL CO (MOSSPARK),A00175,10,2018
Allerdale Borough Council,15501,Supplies & Services,Street Cleansing,Consultants Fees,09/01/2019,419087,50,MICHAEL DOUGLAS AUTO SALVAGE,A00078,10,2018
Allerdale Borough Council,15506,Supplies & Services,Street Scene,Professional Services,09/01/2019,419088,28.18,MILLCROFT VETERINARY GROUP,A00211,10,2018
Allerdale Borough Council,15501,Supplies & Services,Disposal of Allerdale Sites,Consultants Fees,09/01/2019,419089,3400,ENERGY COAST WEST CUMBRIA LTD,A01724,10,2018
Allerdale Borough Council,15100,Supplies & Services,Off-street - Owned,"Budget-Equipment, Furniture & Materials",23/01/2019,419090,352.5,METRIC GROUP LTD,A00568,10,2018
Allerdale Borough Council,12450,Premises,Museums,General-Building Expenses,16/01/2019,419091,2335.3,THOMASON PARTNERSHIP LTD ,A02527,10,2018
Allerdale Borough Council,15101,Supplies & Services,Corporate Property Maintenance,Equipment Costs,22/01/2019,419092,1635,GREEN URBAN TECHNOLOGIES LTD,A02619,10,2018
Allerdale Borough Council,12303,Premises,Corporate Property Maintenance,Window Cleaning,09/01/2019,419093,385,BORDERBRITE LTD,C00155,10,2018
Allerdale Borough Council,10202,Employee Costs,Human Resources Pay Group,Medical Screening,16/01/2019,419094,350,FIT2WORK LTD,A02603,10,2018
Allerdale Borough Council,15101,Supplies & Services,Street Naming and Numbering,Equipment Costs,09/01/2019,419095,152.5,N SIGN LTD,A00634,10,2018
Allerdale Borough Council,12302,Premises,Solway Coast AONB Core Funding,Building Cleaning,09/01/2019,419096,109.48,ORIAN SOLUTIONS LTD,A01814,10,2018
Allerdale Borough Council,20150,Third Party Payments,Corporate Property Maintenance,General Partnership Service Fees,09/01/2019,419097,271.14,ORIAN SOLUTIONS LTD,A01814,10,2018
Allerdale Borough Council,12306,Premises,Public Convenience Cleaning,Legionella Inspections and Services,23/01/2019,419098,1127,CLEARWATER TECHNOLOGY,A02153,10,2018
Allerdale Borough Council,12101,Premises,Multi Storey Car Park Utilities & Maint,External Maintenance & Decoration,16/01/2019,419099,110,NT CLEANERS LTD,A01350,10,2018
Allerdale Borough Council,12101,Premises,Street Naming and Numbering,External Maintenance & Decoration,09/01/2019,419100,940,Redacted information - included personal information ,C00008,10,2018
Allerdale Borough Council,12307,Premises,Corporate Property Maintenance,Fixtures and Fittings,09/01/2019,419101,243.4,THYSSENKRUPP ELEVATOR UK LTD,C00072,10,2018
Allerdale Borough Council,12309,Premises,Multi Storey Car Park Utilities & Maint,Fire and Safety,09/01/2019,419102,194.1,ORIAN SOLUTIONS LTD,A01814,10,2018
Allerdale Borough Council,12309,Premises,Corporate Property Maintenance,Fire and Safety,09/01/2019,419103,70.2,ORIAN SOLUTIONS LTD,A01814,10,2018
Allerdale Borough Council,15101,Supplies & Services,Off-street - Owned,Equipment Costs,16/01/2019,419104,87.12,RELIANCE HIGH-TECH LTD,C00123,10,2018
Allerdale Borough Council,15601,Supplies & Services,Corporate Postage and Stationary,Postage,09/01/2019,419105,495.89,UK MAIL GROUP PLC,A02371,10,2018
Allerdale Borough Council,15601,Supplies & Services,Corporate Postage and Stationary,Postage,09/01/2019,419106,1635.97,UK MAIL GROUP PLC,A02371,10,2018
Allerdale Borough Council,15501,Supplies & Services,Major Contract Procurement,Consultants Fees,09/01/2019,419107,2302.52,BEVAN BRITTAN LLP,A02181,10,2018
Allerdale Borough Council,12101,Premises,Environmental Initiatives,External Maintenance & Decoration,09/01/2019,419108,4184,AQUATIC SOLUTIONS UK,A01536,10,2018
Allerdale Borough Council,15516,Supplies & Services,Insurances,Insurance Services,09/01/2019,419109,1644.82,ZURICH MUNICIPAL,A00429,10,2018
Allerdale Borough Council,15203,Supplies & Services,Members Services,Catering Costs and Consumables,09/01/2019,419110,118.38,KENT AND SUSSEX VENDING,A02127,10,2018
Allerdale Borough Council,15501,Supplies & Services,Major Contract Procurement,Consultants Fees,09/01/2019,419111,1813.42,BEVAN BRITTAN LLP,A02181,10,2018
Allerdale Borough Council,15506,Supplies & Services,Strategic Priorities,Professional Services,09/01/2019,419112,724.8,BLOOM PROCUREMENT SERVICES LTD,A02360,10,2018
Allerdale Borough Council,10401,Employee Costs,Customer Services Pay Group,Agency Staff Costs,09/01/2019,419113,588,ADECCO RECRUITMENT,A00188,10,2018
Allerdale Borough Council,15401,Supplies & Services,Planning and Development,General Stationery,09/01/2019,419114,24.44,HEATONS OFFICE SOLUTION (PREV LAKELAND/INTEGRITY),A00069,10,2018
Allerdale Borough Council,16101,Supplies & Services,Planning and Development,Statutory Notices,09/01/2019,419115,959.5,NEWSQUEST MEDIA GROUP,A02348,10,2018
Allerdale Borough Council,15101,Supplies & Services,Street Naming and Numbering,Equipment Costs,09/01/2019,419116,669,N SIGN LTD,A00634,10,2018
Allerdale Borough Council,15704,Supplies & Services,IT Services,Mobile Phones,09/01/2019,419117,21,EE LIMITED,X00290,10,2018
Allerdale Borough Council,15703,Supplies & Services,IT Services,Call Charges,09/01/2019,419118,1174.87,BRITISH TELECOM PLC,A00363,10,2018
Allerdale Borough Council,15703,Supplies & Services,IT Services,Call Charges,09/01/2019,419119,441.71,BRITISH TELECOM PLC,A00363,10,2018
Allerdale Borough Council,15804,Supplies & Services,IT Services,Computer Data Lines B.T.,23/01/2019,419120,1050.83,VAIONI GROUP LTD,A02471,10,2018
Allerdale Borough Council,16300,Supplies & Services,Multi-storey Car Park,Budget-Miscellaneous,23/01/2019,419121,173.2,METRIC GROUP LTD,A00568,10,2018
Allerdale Borough Council,16300,Supplies & Services,Multi-storey Car Park,Budget-Miscellaneous,16/01/2019,419122,932.68,METRIC GROUP LTD,A00568,10,2018
Allerdale Borough Council,12402,Premises,Public Convenience Cleaning,Electricity,09/01/2019,419123,90.11,N POWER ,X00015,10,2018
Allerdale Borough Council,12402,Premises,Multi Storey Car Park Utilities & Maint,Electricity,09/01/2019,419124,5.48,N POWER ,X00015,10,2018
Allerdale Borough Council,12402,Premises,Corporate Property Maintenance,Electricity,09/01/2019,419125,412.79,N POWER ,X00015,10,2018
Allerdale Borough Council,12402,Premises,Corporate Property Maintenance,Electricity,09/01/2019,419126,2.06,N POWER ,X00015,10,2018
Allerdale Borough Council,12402,Premises,Public Convenience Cleaning,Electricity,09/01/2019,419127,2.7,N POWER ,X00015,10,2018
Allerdale Borough Council,12402,Premises,Public Convenience Cleaning,Electricity,09/01/2019,419128,3.14,N POWER ,X00015,10,2018
Allerdale Borough Council,12402,Premises,Public Convenience Cleaning,Electricity,09/01/2019,419129,2.33,N POWER ,X00015,10,2018
Allerdale Borough Council,12402,Premises,Car Parks Inspection & Maintenance,Electricity,09/01/2019,419130,56.27,N POWER ,X00015,10,2018
Allerdale Borough Council,12402,Premises,Multi Storey Car Park Utilities & Maint,Electricity,09/01/2019,419131,16.4,N POWER ,X00015,10,2018
Allerdale Borough Council,12402,Premises,Corporate Property Maintenance,Electricity,09/01/2019,419132,45.41,N POWER ,X00015,10,2018
Allerdale Borough Council,12402,Premises,Corporate Property Maintenance,Electricity,09/01/2019,419133,10.33,N POWER ,X00015,10,2018
Allerdale Borough Council,15702,Supplies & Services,Off-street - Owned,Line Rentals,09/01/2019,419134,60.68,BRITISH TELECOMMUNICATIONS,X00004,10,2018
Allerdale Borough Council,12402,Premises,Public Convenience Cleaning,Electricity,09/01/2019,419135,5.4,N POWER,X00015,10,2018
Allerdale Borough Council,12402,Premises,Corporate Property Maintenance,Electricity,09/01/2019,419136,-112.29,N POWER,X00015,10,2018
Allerdale Borough Council,12402,Premises,Corporate Property Maintenance,Electricity,09/01/2019,419137,-3.69,N POWER,X00015,10,2018
Allerdale Borough Council,12402,Premises,Public Convenience Cleaning,Electricity,09/01/2019,419138,-15.47,N POWER,X00015,10,2018
Allerdale Borough Council,12402,Premises,Public Convenience Cleaning,Electricity,09/01/2019,419139,-7.5,N POWER,X00015,10,2018
Allerdale Borough Council,12402,Premises,Corporate Property Maintenance,Electricity,09/01/2019,419140,-10.61,N POWER,X00015,10,2018
Allerdale Borough Council,12402,Premises,Corporate Property Maintenance,Electricity,09/01/2019,419141,109.42,N POWER,X00015,10,2018
Allerdale Borough Council,12402,Premises,Corporate Property Maintenance,Electricity,09/01/2019,419142,110.31,N POWER,X00015,10,2018
Allerdale Borough Council,12402,Premises,Corporate Property Maintenance,Electricity,09/01/2019,419143,12.24,N POWER,X00015,10,2018
Allerdale Borough Council,12402,Premises,Corporate Property Maintenance,Electricity,09/01/2019,419144,43.62,N POWER,X00015,10,2018
Allerdale Borough Council,12402,Premises,Corporate Property Maintenance,Electricity,09/01/2019,419145,6.62,N POWER,X00015,10,2018
Allerdale Borough Council,12402,Premises,Corporate Property Maintenance,Electricity,09/01/2019,419146,3.65,N POWER,X00015,10,2018
Allerdale Borough Council,12402,Premises,Corporate Property Maintenance,Electricity,09/01/2019,419147,172.15,N POWER,X00015,10,2018
Allerdale Borough Council,12402,Premises,Corporate Property Maintenance,Electricity,09/01/2019,419148,110.84,N POWER,X00015,10,2018
Allerdale Borough Council,12402,Premises,Corporate Property Maintenance,Electricity,09/01/2019,419149,5.4,N POWER,X00015,10,2018
Allerdale Borough Council,12402,Premises,Corporate Property Maintenance,Electricity,09/01/2019,419150,6.09,N POWER,X00015,10,2018
Allerdale Borough Council,12402,Premises,Public Convenience Cleaning,Electricity,09/01/2019,419151,27.59,N POWER,X00015,10,2018
Allerdale Borough Council,12402,Premises,Public Convenience Cleaning,Electricity,09/01/2019,419152,15.29,N POWER,X00015,10,2018
Allerdale Borough Council,12402,Premises,Public Convenience Cleaning,Electricity,09/01/2019,419153,7.4,N POWER,X00015,10,2018
Allerdale Borough Council,12402,Premises,Public Convenience Cleaning,Electricity,09/01/2019,419154,20.38,N POWER,X00015,10,2018
Allerdale Borough Council,12402,Premises,Public Convenience Cleaning,Electricity,09/01/2019,419155,12.68,N POWER,X00015,10,2018
Allerdale Borough Council,10110,Employee Costs,Commissioning Support Pay Group,Salary Sacrifice,09/01/2019,419156,2387.52,TUSKERDIRECT LTD,A02186,10,2018
Allerdale Borough Council,16005,Supplies & Services,Off-street - Owned,Card Payment Charges,23/01/2019,419157,344.12,COBALT TELEPHONE TECHNOLOGY,A01008,10,2018
Allerdale Borough Council,54105,Capital Expenditure,Disabled Facilities Grants,Grants  Private Individuals (Capital),09/01/2019,419158,600,DOLPHIN STAIRLIFTS CUMBRIA,X00107,10,2018
Allerdale Borough Council,54103,Capital Expenditure,Discretionary Grants,Grants to  Housing Assoc (Capital),09/01/2019,419159,17678.57,PARTNERSHIP IN PROPERTY MANAGEMENT LTD,X00120,10,2018
Allerdale Borough Council,54105,Capital Expenditure,Disabled Facilities Grants,Grants  Private Individuals (Capital),09/01/2019,419160,5225,DOLPHIN STAIRLIFTS CUMBRIA,X00107,10,2018
Allerdale Borough Council,54105,Capital Expenditure,Disabled Facilities Grants,Grants  Private Individuals (Capital),09/01/2019,419161,850,CONISTON CONSULTANTS LTD,X00210,10,2018
Allerdale Borough Council,54105,Capital Expenditure,Disabled Facilities Grants,Grants  Private Individuals (Capital),09/01/2019,419162,624,PARTNERSHIP IN PROPERTY MANAGEMENT LTD,X00120,10,2018
Allerdale Borough Council,54105,Capital Expenditure,Disabled Facilities Grants,Grants  Private Individuals (Capital),09/01/2019,419163,3332.17,PARTNERSHIP IN PROPERTY MANAGEMENT LTD,X00120,10,2018
Allerdale Borough Council,26000,Earmarked Reserves,Community Safety - Funded,Budget-Expd funded from Reserve,09/01/2019,419164,1580,THE POLICE & CRIME COMMISSIONER FOR CUMBRIA,M00443,10,2018
Allerdale Borough Council,15502,Supplies & Services,Legal Services,Land Registry Fees,02/01/2019,419165,9,HM LAND REGISTRY,A00505,10,2018
Allerdale Borough Council,15502,Supplies & Services,Legal Services,Land Registry Fees,08/01/2019,419166,21,HM LAND REGISTRY,A00505,10,2018
Allerdale Borough Council,21150,Transfer Payments,Shop Front Improvements,General Grants,09/01/2019,419167,724,Redacted information - included personal information ,M01556,10,2018
Allerdale Borough Council,21150,Transfer Payments,Shop Front Improvements,General Grants,09/01/2019,419168,315,Redacted information - included personal information ,M01557,10,2018
Allerdale Borough Council,21150,Transfer Payments,Shop Front Improvements,General Grants,09/01/2019,419169,3600,Redacted information - included personal information ,M01558,10,2018
Allerdale Borough Council,10401,Employee Costs,Customer Services Pay Group,Agency Staff Costs,09/01/2019,419170,592,ADECCO RECRUITMENT,A00188,10,2018
Allerdale Borough Council,26000,Earmarked Reserves,Transfer of Land Charges Data,Budget-Expd funded from Reserve,09/01/2019,419171,560.64,ADECCO RECRUITMENT,A00188,10,2018
Allerdale Borough Council,26000,Earmarked Reserves,Transfer of Land Charges Data,Budget-Expd funded from Reserve,09/01/2019,419172,337.92,ADECCO RECRUITMENT,A00188,10,2018
Allerdale Borough Council,26000,Earmarked Reserves,Transfer of Land Charges Data,Budget-Expd funded from Reserve,09/01/2019,419173,568.32,ADECCO RECRUITMENT,A00188,10,2018
Allerdale Borough Council,26000,Earmarked Reserves,Transfer of Land Charges Data,Budget-Expd funded from Reserve,09/01/2019,419174,568.32,ADECCO RECRUITMENT,A00188,10,2018
Allerdale Borough Council,15507,Supplies & Services,Land Charges Service,Searches,09/01/2019,419175,782,CUMBRIA CC,A00066,10,2018
Allerdale Borough Council,15506,Supplies & Services,Legal Services,Professional Services,09/01/2019,419176,1500,KINGS CHAMBERS,A00348,10,2018
Allerdale Borough Council,15501,Supplies & Services,Building Control - Chargeable,Consultants Fees,16/01/2019,419177,46,PK ELECTRICAL (CARLISLE) LTD,A00778,10,2018
Allerdale Borough Council,10110,Employee Costs,Busy Bees Childcare Scheme,Salary Sacrifice,16/01/2019,419178,104.94,COMPUTERSHARE VOUCHER SERVICES,A00991,10,2018
Allerdale Borough Council,10110,Employee Costs,Busy Bees Childcare Scheme,Salary Sacrifice,16/01/2019,419179,1908,COMPUTERSHARE VOUCHER SERVICES,A00991,10,2018
Allerdale Borough Council,15501,Supplies & Services,Building Control - Chargeable,Consultants Fees,16/01/2019,419180,96,PK ELECTRICAL (CARLISLE) LTD,A00778,10,2018
Allerdale Borough Council,12101,Premises,Corporate Property Maintenance,External Maintenance & Decoration,16/01/2019,419181,579,ASHCROFT DEMOLITION (CUMBRIA) LTD,C00197,10,2018
Allerdale Borough Council,15501,Supplies & Services,Building Control - Non-Chargeable,Consultants Fees,16/01/2019,419182,505,ASHCROFT DEMOLITION (CUMBRIA) LTD,C00197,10,2018
Allerdale Borough Council,15503,Supplies & Services,Revenue,Court and Tribunal Costs,09/01/2019,419183,114,HMCTS,A00275,10,2018
Allerdale Borough Council,15901,Supplies & Services,Members Services,Expenses and Reimbursements,16/01/2019,419184,3.6,Redacted information - included personal information ,M00260,10,2018
Allerdale Borough Council,12405,Premises,Homelessness,Rentals and Lease Charges,16/01/2019,419186,6007.3,CASTLES & COASTS HOUSING ASSOCIATION LTD,A02465,10,2018
Allerdale Borough Council,12405,Premises,Homelessness,Rentals and Lease Charges,16/01/2019,419188,100,READ GUESTHOUSE,A02591,10,2018
Allerdale Borough Council,12405,Premises,Homelessness,Rentals and Lease Charges,16/01/2019,419189,100,READ GUESTHOUSE,A02591,10,2018
Allerdale Borough Council,20305,Third Party Payments,Sports & Leisure Centres,Contract Services-Leisure Centres,16/01/2019,419190,51050,GREENWICH LEISURE LTD (PREV CARLISLE LEISURE),A00136,10,2018
Allerdale Borough Council,16150,Supplies & Services,"The Hub, Workington Town Centre",General Promotions,16/01/2019,419191,300,Redacted information - included personal information ,A01408,10,2018
Allerdale Borough Council,15404,Supplies & Services,Legal Services,Reference Materials,23/01/2019,419192,368,SWEET & MAXWELL (THOMSON REUTERS),A00028,10,2018
Allerdale Borough Council,15501,Supplies & Services,Environmental Initiatives,Consultants Fees,,419193,950,LEEMING ASSOCIATES,A02264,10,2018
Allerdale Borough Council,50000,Capital Expenditure,Brow Top Enhancements,Capital Programme,,419194,1990,LEEMING ASSOCIATES,A02264,10,2018
Allerdale Borough Council,15501,Supplies & Services,Environmental Initiatives,Consultants Fees,,419195,850,LEEMING ASSOCIATES,A02264,10,2018
Allerdale Borough Council,10601,Employee Costs,Training,External Courses & Seminar Fees,16/01/2019,419196,1265,LAKES COLLEGE WEST CUMBRIA,A00093,10,2018
Allerdale Borough Council,15505,Supplies & Services,Other Land & Buildings,Licences,16/01/2019,419197,60,PFK PLC LAND AGENCY,A00954,10,2018
Allerdale Borough Council,16150,Supplies & Services,Remembering the Solway,General Promotions,16/01/2019,419198,40,NORTH CUMBRIA METHODIST CIRCUIT,M00901,10,2018
Allerdale Borough Council,12101,Premises,Corporate Property Maintenance,External Maintenance & Decoration,16/01/2019,419199,145,THE CUMBRIA CLOCK CO LTD,A00061,10,2018
Allerdale Borough Council,16101,Supplies & Services,Off-street - Owned,Statutory Notices,16/01/2019,419200,245,NEWSQUEST MEDIA GROUP,A02348,10,2018
Allerdale Borough Council,15506,Supplies & Services,Estates,Professional Services,16/01/2019,419201,2400,WALTON GOODLAND LTD,A01226,10,2018
Allerdale Borough Council,15506,Supplies & Services,Legal Services,Professional Services,16/01/2019,419202,950,BEVAN BRITTAN LLP,A02181,10,2018
Allerdale Borough Council,15101,Supplies & Services,Legal Services,Equipment Costs,16/01/2019,419203,139,EQUIP4WORK LTD T/A OFFICE FURNITURE ONLINE,A01958,10,2018
Allerdale Borough Council,14150,Transport,Gates Travel,General-Council Vehicles (Non-Capital),23/01/2019,419204,1984.7,GATES TRAVEL,A01525,10,2018
Allerdale Borough Council,12202,Premises,Corporate Property Maintenance,Electrical Repairs and Service,16/01/2019,419205,4875,TERRIS ELECTRICAL COMPANY LTD,C00014,10,2018
Allerdale Borough Council,20101,Third Party Payments,Public Convenience Cleaning,Cleansing Contract,16/01/2019,419206,200,Redacted information - included personal information ,A00209,10,2018
Allerdale Borough Council,12305,Premises,Corporate Property Maintenance,Inspections and Services,30/01/2019,419207,402,GILGEN DOOR SYSTEMS UK LTD,A00542,10,2018
Allerdale Borough Council,15101,Supplies & Services,Public Building Cleaning,Equipment Costs,30/01/2019,419208,59.99,ARCO LIMITED - HEAD OFFICE HULL,A00045,10,2018
Allerdale Borough Council,12303,Premises,Corporate Property Maintenance,Window Cleaning,16/01/2019,419209,4796,STOBBARTS LIMITED,C00204,10,2018
Allerdale Borough Council,52106,Capital Expenditure,Solway coast multi-user pathway,Consultants Fees (Capital),16/01/2019,419210,8110,BLOOM PROCUREMENT SERVICES LTD,A02360,10,2018
Allerdale Borough Council,12405,Premises,Homelessness,Rentals and Lease Charges,,419211,148.33,BARCLAYCARD COMMERCIAL ,X00207,10,2018
Allerdale Borough Council,15811,Supplies & Services,IT Services,Software Maintenance,06/02/2019,419212,228.2,PHOENIX SOFTWARE LTD,A00229,10,2018
Allerdale Borough Council,15405,Supplies & Services,Members Services,Use of External Printers,16/01/2019,419213,12,FIRPRESS PRINTERS,A00063,10,2018
Allerdale Borough Council,16301,Supplies & Services,Sports Development,Reimbursement,16/01/2019,419214,1029,VAADHOO LIMITED,A02268,10,2018
Allerdale Borough Council,10114,Employee Costs,"Business Support Unit, Devt Services",Agency to Cover Established Post,16/01/2019,419215,345.6,ADECCO RECRUITMENT,A00188,10,2018
Allerdale Borough Council,10114,Employee Costs,"Business Support Unit, Devt Services",Agency to Cover Established Post,16/01/2019,419216,460.8,ADECCO RECRUITMENT,A00188,10,2018
Allerdale Borough Council,12101,Premises,Footways,External Maintenance & Decoration,16/01/2019,419217,381,Redacted information - included personal information ,A00176,10,2018
Allerdale Borough Council,15103,Supplies & Services,Pest Control,Purchase of Materials,30/01/2019,419218,95.8,KILLGERM CHEMICALS LTD,A00361,10,2018
Allerdale Borough Council,12305,Premises,MSCP Utilities & Maint fund,Inspections and Services,16/01/2019,419219,74.8,SOLWAY INDUSTRIAL DOORS LTD,C00015,10,2018
Allerdale Borough Council,21150,Transfer Payments,Shop Front Improvements,General Grants,16/01/2019,419220,675,Redacted information - included personal information ,M01559,10,2018
Allerdale Borough Council,10204,Employee Costs,Allerdale Options,Staff Reward Payments,,419221,303.79,BARCLAYCARD COMMERCIAL,X00207,10,2018
Allerdale Borough Council,12405,Premises,Homelessness,Rentals and Lease Charges,,419222,140,BARCLAYCARD COMMERCIAL ,X00207,10,2018
Allerdale Borough Council,16350,Supplies & Services,Off-street - Owned,Miscellaneous Expenses,23/01/2019,419223,909.5,3C PAYMENT LIMITED,A02382,10,2018
Allerdale Borough Council,15101,Supplies & Services,Recycling,Equipment Costs,16/01/2019,419224,416,J DUFFY LTD T/A PW CONF BUS SERVICES,A01846,10,2018
Allerdale Borough Council,15506,Supplies & Services,Assistance - Housing Services,Professional Services,16/01/2019,419225,5431.16,CUMBRIA CC,A00066,10,2018
Allerdale Borough Council,15601,Supplies & Services,Corporate Postage and Stationary,Postage,16/01/2019,419226,256.31,UK MAIL GROUP PLC,A02371,10,2018
Allerdale Borough Council,15405,Supplies & Services,Off-street - Owned,Use of External Printers,16/01/2019,419227,545,FIRPRESS PRINTERS,A00063,10,2018
Allerdale Borough Council,16003,Supplies & Services,Off-street - Owned,Security of Cash Movements,23/01/2019,419228,664,G4S CASH SOLUTIONS (UK) LTD,A02421,10,2018
Allerdale Borough Council,15501,Supplies & Services,Street Cleansing,Consultants Fees,16/01/2019,419229,50,MICHAEL DOUGLAS AUTO SALVAGE,A00078,10,2018
Allerdale Borough Council,15102,Supplies & Services,Domestic Waste,Equipment Repair & Maintenance,16/01/2019,419230,206,Redacted information - included personal information ,A00176,10,2018
Allerdale Borough Council,12405,Premises,Homelessness,Rentals and Lease Charges,,419231,477.17,BARCLAYCARD COMMERCIAL,X00207,10,2018
Allerdale Borough Council,15501,Supplies & Services,Planning and Development,Consultants Fees,16/01/2019,419232,449.5,TREESCAPES CONSULTANCY LTD,A02385,10,2018
Allerdale Borough Council,15506,Supplies & Services,Communications and Marketing,Professional Services,23/01/2019,419233,1200,BIRCHAM DYSON BELL LLP,A02323,10,2018
Allerdale Borough Council,12101,Premises,Car Parks Inspection & Maintenance,External Maintenance & Decoration,16/01/2019,419234,918,Redacted information - included personal information ,C00008,10,2018
Allerdale Borough Council,12103,Premises,Coastal Protection and Inland Flooding,Grounds Maintenance,06/02/2019,419235,110,UK HARBOUR MASTERS ASS,A01583,10,2018
Allerdale Borough Council,15508,Supplies & Services,Economic Regeneration,Subscriptions,16/01/2019,419236,360,BRIT ENERGY COAST BUSINESS CLUSTER,A01648,10,2018
Allerdale Borough Council,15101,Supplies & Services,Corporate Property Maintenance,Equipment Costs,16/01/2019,419237,195.88,BOOKER CASH & CARRY,A01419,10,2018
Allerdale Borough Council,15505,Supplies & Services,Legal Services,Licences,16/01/2019,419238,5517.55,CIVICA UK LIMITED,A00006,10,2018
Allerdale Borough Council,15508,Supplies & Services,Finance and Accounting Pay Group,Subscriptions,16/01/2019,419239,200,SOCIETY OF DISTRICT COUNCIL TREASURERS,A02521,10,2018
Allerdale Borough Council,81602,Balance Sheet,General Fund,Prov-Insurance Excess (Balance Sheet),16/01/2019,419240,5000,ZURICH MUNICIPAL,A00429,10,2018
Allerdale Borough Council,12101,Premises,Environmental Initiatives,External Maintenance & Decoration,,419241,3641,TIVOLI GROUP LTD,A02568,10,2018
Allerdale Borough Council,12101,Premises,Environmental Initiatives,External Maintenance & Decoration,,419242,495.6,TIVOLI GROUP LTD,A02568,10,2018
Allerdale Borough Council,12101,Premises,Corporate Property Maintenance,External Maintenance & Decoration,,419243,140,TIVOLI GROUP LTD,A02568,10,2018
Allerdale Borough Council,15401,Supplies & Services,Finance and Accounting Pay Group,General Stationery,16/01/2019,419244,194.4,SAGE (UK) LTD,A01911,10,2018
Allerdale Borough Council,12101,Premises,Corporate Property Maintenance,External Maintenance & Decoration,16/01/2019,419245,1214.4,ASHCROFT PLANT (CUMBRIA) LTD,C00018,10,2018
Allerdale Borough Council,21150,Transfer Payments,Shop Front Improvements,General Grants,16/01/2019,419246,900,Redacted information - included personal information ,M01416,10,2018
Allerdale Borough Council,54105,Capital Expenditure,Disabled Facilities Grants,Grants  Private Individuals (Capital),16/01/2019,419247,650,CONISTON CONSULTANTS LTD,X00210,10,2018
Allerdale Borough Council,54105,Capital Expenditure,Disabled Facilities Grants,Grants  Private Individuals (Capital),16/01/2019,419248,3720,THE EXCELLENT RAMP SYSTEM LTD,X00282,10,2018
Allerdale Borough Council,54105,Capital Expenditure,Disabled Facilities Grants,Grants  Private Individuals (Capital),16/01/2019,419249,4050,DOLPHIN STAIRLIFTS CUMBRIA,X00107,10,2018
Allerdale Borough Council,54105,Capital Expenditure,Disabled Facilities Grants,Grants  Private Individuals (Capital),16/01/2019,419250,10865,K BAILIFF & SON LIMITED,X00116,10,2018
Allerdale Borough Council,54105,Capital Expenditure,Disabled Facilities Grants,Grants  Private Individuals (Capital),16/01/2019,419251,24211.87,FEARON BUILDERS,C00069,10,2018
Allerdale Borough Council,15506,Supplies & Services,Food and Occupational Health,Professional Services,16/01/2019,419252,251.97,MILLCROFT VETERINARY GROUP,A00211,10,2018
Allerdale Borough Council,16101,Supplies & Services,Planning and Development,Statutory Notices,16/01/2019,419253,1047.5,NEWSQUEST MEDIA GROUP,A02348,10,2018
Allerdale Borough Council,20150,Third Party Payments,Footways,General Partnership Service Fees,16/01/2019,419254,6755.4,CUMBRIA CC ,A00066,10,2018
Allerdale Borough Council,20101,Third Party Payments,Recycling,Cleansing Contract,16/01/2019,419255,2410.25,CUMBRIA WASTE MANAGEMENT LTD,A01304,10,2018
Allerdale Borough Council,15501,Supplies & Services,Major Contract Procurement,Consultants Fees,16/01/2019,419256,19473.64,BEVAN BRITTAN LLP,A02181,10,2018
Allerdale Borough Council,15101,Supplies & Services,Public Building Cleaning,Equipment Costs,16/01/2019,419257,75,WF HYGIENE & CLEANING SUPPLIES,A01794,10,2018
Allerdale Borough Council,15501,Supplies & Services,Planning and Development,Consultants Fees,16/01/2019,419258,102.5,TREESCAPES CONSULTANCY LTD,A02385,10,2018
Allerdale Borough Council,15401,Supplies & Services,Planning Policy,General Stationery,23/01/2019,419259,4.49,HEATONS OFFICE SOLUTION (PREV LAKELAND/INTEGRITY),A00069,10,2018
Allerdale Borough Council,10601,Employee Costs,Training,External Courses & Seminar Fees,30/01/2019,419260,595,INSTITUTE OF CEMETERY & CREMATORIUM MANAGEMENT,A00958,10,2018
Allerdale Borough Council,15704,Supplies & Services,IT Services,Mobile Phones,16/01/2019,419261,46.97,VODAFONE,A00551,10,2018
Allerdale Borough Council,15702,Supplies & Services,IT Services,Line Rentals,16/01/2019,419262,273.38,BRITISH TELECOMMUNICATIONS,X00004,10,2018
Allerdale Borough Council,12408,Premises,Public Convenience Cleaning,Water & Sewage,16/01/2019,419263,1161.11,SCOTTISH WATER BUSINESS STREAM LTD,X00271,10,2018
Allerdale Borough Council,12408,Premises,Corporate Property Maintenance,Water & Sewage,16/01/2019,419264,203.28,SCOTTISH WATER BUSINESS STREAM LTD,X00271,10,2018
Allerdale Borough Council,12408,Premises,Corporate Property Maintenance,Water & Sewage,16/01/2019,419265,81.72,SCOTTISH WATER BUSINESS STREAM LTD,X00271,10,2018
Allerdale Borough Council,12408,Premises,Public Convenience Cleaning,Water & Sewage,16/01/2019,419266,173.69,SCOTTISH WATER BUSINESS STREAM LTD,X00271,10,2018
Allerdale Borough Council,12408,Premises,Multi Storey Car Park Utilities & Maint,Water & Sewage,16/01/2019,419267,450.22,SCOTTISH WATER BUSINESS STREAM LTD,X00271,10,2018
Allerdale Borough Council,12408,Premises,Corporate Property Maintenance,Water & Sewage,16/01/2019,419268,1295.74,SCOTTISH WATER BUSINESS STREAM LTD,X00271,10,2018
Allerdale Borough Council,12408,Premises,Corporate Property Maintenance,Water & Sewage,16/01/2019,419269,408.41,SCOTTISH WATER BUSINESS STREAM LTD,X00271,10,2018
Allerdale Borough Council,12408,Premises,Corporate Property Maintenance,Water & Sewage,16/01/2019,419270,285.72,SCOTTISH WATER BUSINESS STREAM LTD,X00271,10,2018
Allerdale Borough Council,12408,Premises,Corporate Property Maintenance,Water & Sewage,16/01/2019,419271,63.64,SCOTTISH WATER BUSINESS STREAM LTD,X00271,10,2018
Allerdale Borough Council,12408,Premises,Public Convenience Cleaning,Water & Sewage,16/01/2019,419272,478.91,SCOTTISH WATER BUSINESS STREAM LTD,X00271,10,2018
Allerdale Borough Council,12408,Premises,Corporate Property Maintenance,Water & Sewage,16/01/2019,419273,19.72,SCOTTISH WATER BUSINESS STREAM LTD,X00271,10,2018
Allerdale Borough Council,12408,Premises,Corporate Property Maintenance,Water & Sewage,16/01/2019,419274,4.32,SCOTTISH WATER BUSINESS STREAM LTD,X00271,10,2018
Allerdale Borough Council,12408,Premises,Corporate Property Maintenance,Water & Sewage,16/01/2019,419275,180.7,SCOTTISH WATER BUSINESS STREAM LTD,X00271,10,2018
Allerdale Borough Council,12408,Premises,Corporate Property Maintenance,Water & Sewage,16/01/2019,419276,38.5,SCOTTISH WATER BUSINESS STREAM LTD,X00271,10,2018
Allerdale Borough Council,12402,Premises,Car Parks Inspection & Maintenance,Electricity,16/01/2019,419277,100.68,N POWER ,X00015,10,2018
Allerdale Borough Council,12408,Premises,Corporate Property Maintenance,Water & Sewage,16/01/2019,419278,268.14,SCOTTISH WATER BUSINESS STREAM LTD,X00271,10,2018
Allerdale Borough Council,12408,Premises,Corporate Property Maintenance,Water & Sewage,16/01/2019,419279,4.35,SCOTTISH WATER BUSINESS STREAM LTD,X00271,10,2018
Allerdale Borough Council,12408,Premises,Corporate Property Maintenance,Water & Sewage,16/01/2019,419280,4.16,SCOTTISH WATER BUSINESS STREAM LTD,X00271,10,2018
Allerdale Borough Council,12408,Premises,Corporate Property Maintenance,Water & Sewage,16/01/2019,419281,27.28,SCOTTISH WATER BUSINESS STREAM LTD,X00271,10,2018
Allerdale Borough Council,12408,Premises,Corporate Property Maintenance,Water & Sewage,16/01/2019,419282,10.58,SCOTTISH WATER BUSINESS STREAM LTD,X00271,10,2018
Allerdale Borough Council,12408,Premises,Corporate Property Maintenance,Water & Sewage,16/01/2019,419283,150.29,SCOTTISH WATER BUSINESS STREAM LTD,X00271,10,2018
Allerdale Borough Council,12408,Premises,Corporate Property Maintenance,Water & Sewage,16/01/2019,419284,1181.43,SCOTTISH WATER BUSINESS STREAM LTD,X00271,10,2018
Allerdale Borough Council,12408,Premises,Corporate Property Maintenance,Water & Sewage,16/01/2019,419285,-2075.57,SCOTTISH WATER BUSINESS STREAM LTD,X00271,10,2018
Allerdale Borough Council,12408,Premises,Corporate Property Maintenance,Water & Sewage,16/01/2019,419286,-11.13,SCOTTISH WATER BUSINESS STREAM LTD,X00271,10,2018
Allerdale Borough Council,12408,Premises,Corporate Property Maintenance,Water & Sewage,16/01/2019,419287,150.86,SCOTTISH WATER BUSINESS STREAM LTD,X00271,10,2018
Allerdale Borough Council,12402,Premises,Footways,Electricity,16/01/2019,419288,5893.99,N POWER,X00015,10,2018
Allerdale Borough Council,12408,Premises,Public Convenience Cleaning,Water & Sewage,16/01/2019,419289,80.62,SCOTTISH WATER BUSINESS STREAM LTD,X00271,10,2018
Allerdale Borough Council,12408,Premises,Corporate Property Maintenance,Water & Sewage,16/01/2019,419290,31.56,SCOTTISH WATER BUSINESS STREAM LTD,X00271,10,2018
Allerdale Borough Council,12408,Premises,Public Convenience Cleaning,Water & Sewage,16/01/2019,419291,137.89,SCOTTISH WATER BUSINESS STREAM LTD,X00271,10,2018
Allerdale Borough Council,12408,Premises,Public Convenience Cleaning,Water & Sewage,16/01/2019,419292,114.08,SCOTTISH WATER BUSINESS STREAM LTD,X00271,10,2018
Allerdale Borough Council,12408,Premises,Public Convenience Cleaning,Water & Sewage,16/01/2019,419293,186.98,SCOTTISH WATER BUSINESS STREAM LTD,X00271,10,2018
Allerdale Borough Council,12408,Premises,Public Convenience Cleaning,Water & Sewage,16/01/2019,419294,228.68,SCOTTISH WATER BUSINESS STREAM LTD,X00271,10,2018
Allerdale Borough Council,12408,Premises,Public Convenience Cleaning,Water & Sewage,16/01/2019,419295,80.55,SCOTTISH WATER BUSINESS STREAM LTD,X00271,10,2018
Allerdale Borough Council,15704,Supplies & Services,IT Services,Mobile Phones,30/01/2019,419296,21,EE LIMITED,X00290,10,2018
Allerdale Borough Council,20150,Third Party Payments,Footways,General Partnership Service Fees,16/01/2019,419297,-926,CUMBRIA CC,A00066,10,2018
Allerdale Borough Council,15703,Supplies & Services,IT Services,Call Charges,16/01/2019,419298,639.88,BRITISH TELECOMMUNICATIONS,X00004,10,2018
Allerdale Borough Council,12402,Premises,Corporate Property Maintenance,Electricity,16/01/2019,419299,532.39,N POWER ,X00015,10,2018
Allerdale Borough Council,12402,Premises,Corporate Property Maintenance,Electricity,16/01/2019,419300,4377.83,N POWER ,X00015,10,2018
Allerdale Borough Council,12402,Premises,Multi Storey Car Park Utilities & Maint,Electricity,16/01/2019,419301,2010.83,N POWER ,X00015,10,2018
Allerdale Borough Council,12402,Premises,Corporate Property Maintenance,Electricity,16/01/2019,419302,1920.62,N POWER ,X00015,10,2018
Allerdale Borough Council,15805,Supplies & Services,IT Services,Computer Network,06/02/2019,419303,30,THUS/DEMON PLC,A00598,10,2018
Allerdale Borough Council,15804,Supplies & Services,IT Services,Computer Data Lines B.T.,23/01/2019,419304,3225.07,VODAFONE,A00934,10,2018
Allerdale Borough Council,15804,Supplies & Services,IT Services,Computer Data Lines B.T.,16/01/2019,419305,870.63,VODAFONE,A00934,10,2018
Allerdale Borough Council,12402,Premises,Homelessness,Electricity,16/01/2019,419306,20.4,OPUS ENERGY,X00226,10,2018
Allerdale Borough Council,12402,Premises,Homelessness,Electricity,16/01/2019,419307,10.84,OPUS ENERGY,X00226,10,2018
Allerdale Borough Council,12402,Premises,Homelessness,Electricity,16/01/2019,419308,23.53,OPUS ENERGY,X00226,10,2018
Allerdale Borough Council,12402,Premises,Homelessness,Electricity,16/01/2019,419309,27.53,OPUS ENERGY,X00226,10,2018
Allerdale Borough Council,12402,Premises,Homelessness,Electricity,16/01/2019,419310,6.99,OPUS ENERGY,X00226,10,2018
Allerdale Borough Council,12402,Premises,Homelessness,Electricity,16/01/2019,419311,40.64,OPUS ENERGY,X00226,10,2018
Allerdale Borough Council,12402,Premises,Homelessness,Electricity,16/01/2019,419312,23.23,OPUS ENERGY,X00226,10,2018
Allerdale Borough Council,12402,Premises,Homelessness,Electricity,16/01/2019,419313,-17.73,OPUS ENERGY,X00226,10,2018
Allerdale Borough Council,12402,Premises,Homelessness,Electricity,16/01/2019,419314,-11.27,OPUS ENERGY,X00226,10,2018
Allerdale Borough Council,12402,Premises,Homelessness,Electricity,16/01/2019,419315,45.38,OPUS ENERGY,X00226,10,2018
Allerdale Borough Council,15506,Supplies & Services,Legal Services,Professional Services,23/01/2019,419316,350,FREETH CARTWRIGHT LLP,A01821,10,2018
Allerdale Borough Council,10401,Employee Costs,Environmental Protection,Agency Staff Costs,16/01/2019,419317,258.4,HAYS SPECIALIST RECRUITMENT LTD,A00280,10,2018
Allerdale Borough Council,10401,Employee Costs,Environmental Protection,Agency Staff Costs,16/01/2019,419318,258.4,HAYS SPECIALIST RECRUITMENT LTD,A00280,10,2018
Allerdale Borough Council,10401,Employee Costs,Environmental Protection,Agency Staff Costs,16/01/2019,419319,258.4,HAYS SPECIALIST RECRUITMENT LTD,A00280,10,2018
Allerdale Borough Council,10401,Employee Costs,Environmental Protection,Agency Staff Costs,30/01/2019,419320,155.04,HAYS SPECIALIST RECRUITMENT LTD,A00280,10,2018
Allerdale Borough Council,20305,Third Party Payments,Maryport Wave,Contract Services-Leisure Centres,16/01/2019,419321,11415.08,GREENWICH LEISURE LTD (PREV CARLISLE LEISURE),A00136,10,2018
Allerdale Borough Council,20305,Third Party Payments,Maryport Wave,Contract Services-Leisure Centres,16/01/2019,419322,15581.74,GREENWICH LEISURE LTD (PREV CARLISLE LEISURE),A00136,10,2018
Allerdale Borough Council,20305,Third Party Payments,Sports & Leisure Centres,Contract Services-Leisure Centres,16/01/2019,419323,-13466,GREENWICH LEISURE LTD (PREV CARLISLE LEISURE),A00136,10,2018
Allerdale Borough Council,15601,Supplies & Services,Corporate Postage and Stationary,Postage,16/01/2019,419324,1324.8,ROYAL MAIL LETTERS,X00021,10,2018
Allerdale Borough Council,15804,Supplies & Services,IT Services,Computer Data Lines B.T.,23/01/2019,419325,870.63,VODAFONE,A00934,10,2018
Allerdale Borough Council,15703,Supplies & Services,IT Services,Call Charges,30/01/2019,419326,312.13,BRITISH TELECOM PLC,A00363,10,2018
Allerdale Borough Council,10203,Employee Costs,Chief Executive,Subsistence Allowance,,419327,16,BARCLAYCARD COMMERCIAL ,X00207,10,2018
Allerdale Borough Council,15404,Supplies & Services,Benefits,Reference Materials,30/01/2019,419328,229.49,CHILD POVERTY ACTION GROUP,A00866,10,2018
Allerdale Borough Council,12101,Premises,Car Parks Inspection & Maintenance,External Maintenance & Decoration,23/01/2019,419329,2394,JOHN ELLIOTT LIMITED,C00023,10,2018
Allerdale Borough Council,16150,Supplies & Services,Remembering the Solway,General Promotions,23/01/2019,419330,947.54,CREATIVE HORIZONS CUMBRIA,A02277,10,2018
Allerdale Borough Council,15803,Supplies & Services,Arcus,Hardware Purchase,,419331,2406.28,BARCLAYCARD COMMERCIAL,X00207,10,2018
Allerdale Borough Council,12309,Premises,Corporate Property Maintenance,Fire and Safety,23/01/2019,419332,86,COMPASS SERVICES GROUP,A00839,10,2018
Allerdale Borough Council,15506,Supplies & Services,Assistance - Housing Services,Professional Services,23/01/2019,419333,120,PARTNERSHIP IN PROPERTY MANAGEMENT LTD,X00120,10,2018
Allerdale Borough Council,15101,Supplies & Services,Public Building Cleaning,Equipment Costs,23/01/2019,419334,59.9,BOOKER CASH & CARRY ,A01419,10,2018
Allerdale Borough Council,10601,Employee Costs,Training,External Courses & Seminar Fees,30/01/2019,419335,90,INSTITUTE OF CEMETERY & CREMATORIUM MANAGEMENT,A00958,10,2018
Allerdale Borough Council,15101,Supplies & Services,Homelessness,Equipment Costs,23/01/2019,419336,58.33,CUMBRIA RECYCLING LTD,A00671,10,2018
Allerdale Borough Council,21150,Transfer Payments,Environmental Initiatives,General Grants,23/01/2019,419337,200,WORKINGTON TOWN COUNCIL,A01615,10,2018
Allerdale Borough Council,21150,Transfer Payments,Workington Nature Partnership,General Grants,23/01/2019,419338,500,WORKINGTON TOWN COUNCIL,A01615,10,2018
Allerdale Borough Council,33112,Income,Planning and Development,Planning Fees Income,23/01/2019,419339,11550,TWEDDLE ENGINEERING,M01560,10,2018
Allerdale Borough Council,15506,Supplies & Services,Environmental Protection,Professional Services,23/01/2019,419340,1500,SOCOTEC UK LIMITED,A00896,10,2018
Allerdale Borough Council,12101,Premises,Corporate Property Maintenance,External Maintenance & Decoration,23/01/2019,419341,7538.04,STOBBARTS LIMITED,C00204,10,2018
Allerdale Borough Council,12101,Premises,Corporate Property Maintenance,External Maintenance & Decoration,23/01/2019,419342,4382.5,STOBBARTS LIMITED,C00204,10,2018
Allerdale Borough Council,15104,Supplies & Services,Bereavement Services,Supplies for Resale,23/01/2019,419343,65.9,GRANART,A00644,10,2018
Allerdale Borough Council,10203,Employee Costs,Director of Resources & PA,Subsistence Allowance,23/01/2019,419344,44.55,AL'S KITCHEN LTD,A00187,10,2018
Allerdale Borough Council,15601,Supplies & Services,Corporate Postage and Stationary,Postage,23/01/2019,419345,1139.42,UK MAIL GROUP PLC,A02371,10,2018
Allerdale Borough Council,16302,Supplies & Services,Members Services,Room Hire,23/01/2019,419346,129,CUMBRIA CC,A00066,10,2018
Allerdale Borough Council,10401,Employee Costs,Environmental Protection,Agency Staff Costs,06/02/2019,419347,258.4,HAYS SPECIALIST RECRUITMENT LTD,A00280,10,2018
Allerdale Borough Council,10601,Employee Costs,Training,External Courses & Seminar Fees,23/01/2019,419348,470,Redacted information - included personal information ,A02623,10,2018
Allerdale Borough Council,12101,Premises,Corporate Property Maintenance,External Maintenance & Decoration,23/01/2019,419349,52,DESIGN GRID LTD,A01627,10,2018
Allerdale Borough Council,10601,Employee Costs,Training,External Courses & Seminar Fees,23/01/2019,419350,400,CUMBRIA CC,A00066,10,2018
Allerdale Borough Council,15507,Supplies & Services,Land Charges Service,Searches,23/01/2019,419351,715,LAKE DISTRICT NATIONAL PARK AUTHORITY,A00415,10,2018
Allerdale Borough Council,16100,Supplies & Services,Communications and Marketing,Budget-Advertising and Promotions,23/01/2019,419352,150,EWANRIGG LOCAL TRUST,R00024,10,2018
Allerdale Borough Council,16100,Supplies & Services,Communications and Marketing,Budget-Advertising and Promotions,23/01/2019,419353,900,CUMBRIA TOURISM,A00477,10,2018
Allerdale Borough Council,26000,Earmarked Reserves,Transfer of Land Charges Data,Budget-Expd funded from Reserve,23/01/2019,419354,460.8,ADECCO RECRUITMENT,A00188,10,2018
Allerdale Borough Council,26000,Earmarked Reserves,Transfer of Land Charges Data,Budget-Expd funded from Reserve,23/01/2019,419355,279.74,ADECCO RECRUITMENT,A00188,10,2018
Allerdale Borough Council,26000,Earmarked Reserves,Transfer of Land Charges Data,Budget-Expd funded from Reserve,23/01/2019,419356,346.72,ADECCO RECRUITMENT,A00188,10,2018
Allerdale Borough Council,15102,Supplies & Services,Environmental Protection,Equipment Repair & Maintenance,06/02/2019,419357,130,CAMPBELL ASSOCIATES LTD,A01184,10,2018
Allerdale Borough Council,15506,Supplies & Services,Museums,Professional Services,23/01/2019,419358,1500,ARTLINK TRANSPORT & STORAGE LTD,A02362,10,2018
Allerdale Borough Council,20150,Third Party Payments,Workington Hall Repairs,General Partnership Service Fees,23/01/2019,419359,3739.97,MOSEDALE GILLATT ARCHITECTS,A01020,10,2018
Allerdale Borough Council,12201,Premises,Corporate Property Maintenance,Internal Maintenance,23/01/2019,419360,1600,Redacted information - included personal information ,C00030,10,2018
Allerdale Borough Council,15507,Supplies & Services,Land Charges Service,Searches,,419361,280,PHOENIX SOFTWARE LTD,A00229,10,2018
Allerdale Borough Council,26000,Earmarked Reserves,Transfer of Land Charges Data,Budget-Expd funded from Reserve,23/01/2019,419362,583.12,ADECCO RECRUITMENT,A00188,10,2018
Allerdale Borough Council,26000,Earmarked Reserves,Transfer of Land Charges Data,Budget-Expd funded from Reserve,23/01/2019,419363,464.92,ADECCO RECRUITMENT,A00188,10,2018
Allerdale Borough Council,10204,Employee Costs,Allerdale Options,Staff Reward Payments,,419364,1051.9,BARCLAYCARD COMMERCIAL ,X00207,10,2018
Allerdale Borough Council,10606,Employee Costs,Solway Coast AONB Core Funding,Accommodation,23/01/2019,419365,161,Redacted information - included personal information ,M01545,10,2018
Allerdale Borough Council,20150,Third Party Payments,Managed Car Parks,General Partnership Service Fees,23/01/2019,419366,10024.05,KESWICK MINISTRIES,A02390,10,2018
Allerdale Borough Council,15502,Supplies & Services,Legal Services,Land Registry Fees,28/01/2019,419367,63,HM LAND REGISTRY,A00505,10,2018
Allerdale Borough Council,16350,Supplies & Services,Chief Executive,Miscellaneous Expenses,23/01/2019,419368,10,ICENI ENTERPRISES LTD,M01561,10,2018
Allerdale Borough Council,15101,Supplies & Services,Corporate Property Maintenance,Equipment Costs,22/01/2019,419369,-1635,GREEN URBAN TECHNOLOGIES LTD,A02619,10,2018
Allerdale Borough Council,10204,Employee Costs,Allerdale Options,Staff Reward Payments,23/01/2019,419370,301.07,ALLERDALE BOROUGH COUNCIL,X00034,10,2018
Allerdale Borough Council,33117,Income,Off-street - Owned,Car Parks - Income from Machines,23/01/2019,419371,25,Redacted information - included personal information ,M01562,10,2018
Allerdale Borough Council,15506,Supplies & Services,Corporate Transformation,Professional Services,23/01/2019,419372,1187,INVISIBLE SYSTEMS LTD,A02539,10,2018
Allerdale Borough Council,14101,Transport,Pest Control,Vehicle Leasing,23/01/2019,419373,1105.8,VOLKSWAGEN GROUP LEASING,A01239,10,2018
Allerdale Borough Council,16300,Supplies & Services,Tourism Incentive,Budget-Miscellaneous,23/01/2019,419374,2000,EDEN DISTRICT COUNCIL,A00790,10,2018
Allerdale Borough Council,15506,Supplies & Services,Finance and Accounting Pay Group,Professional Services,23/01/2019,419375,655,LAMONT PRIDMORE (WEST CUMBRIA) LIMITED,A02105,10,2018
Allerdale Borough Council,15506,Supplies & Services,Finance and Accounting Pay Group,Professional Services,23/01/2019,419376,655,LAMONT PRIDMORE (WEST CUMBRIA) LIMITED,A02105,10,2018
Allerdale Borough Council,15203,Supplies & Services,Solway Coast AONB Core Funding,Catering Costs and Consumables,23/01/2019,419377,2174.83,BURGE HALSTON LTD,A02546,10,2018
Allerdale Borough Council,12405,Premises,Homelessness,Rentals and Lease Charges,23/01/2019,419378,1201.76,HOME GROUP LTD,A00423,10,2018
Allerdale Borough Council,16101,Supplies & Services,Planning and Development,Statutory Notices,06/02/2019,419379,239.85,NEWSQUEST MEDIA GROUP,A02348,10,2018
Allerdale Borough Council,15602,Supplies & Services,Housing Improvement,Business Reply Licences,23/01/2019,419380,9.43,ROYAL MAIL LETTERS,X00021,10,2018
Allerdale Borough Council,15602,Supplies & Services,Housing Improvement,Business Reply Licences,23/01/2019,419381,6.15,ROYAL MAIL LETTERS,X00021,10,2018
Allerdale Borough Council,12402,Premises,Other Land & Buildings,Electricity,23/01/2019,419382,24,ENGIE POWER LIMITED ,X00286,10,2018
Allerdale Borough Council,15703,Supplies & Services,IT Services,Call Charges,30/01/2019,419383,1170.54,BRITISH TELECOM PLC,A00363,10,2018
Allerdale Borough Council,16101,Supplies & Services,Planning and Development,Statutory Notices,06/02/2019,419384,-239.85,NEWSQUEST MEDIA GROUP,A02348,10,2018
Allerdale Borough Council,12403,Premises,Homelessness,Gas,23/01/2019,419385,226.42,NPOWER,X00277,10,2018
Allerdale Borough Council,12402,Premises,Corporate Property Maintenance,Electricity,23/01/2019,419386,5.59,N POWER,X00015,10,2018
Allerdale Borough Council,12402,Premises,Corporate Property Maintenance,Electricity,23/01/2019,419387,7.37,N POWER,X00015,10,2018
Allerdale Borough Council,12402,Premises,Public Convenience Cleaning,Electricity,23/01/2019,419388,25.09,N POWER,X00015,10,2018
Allerdale Borough Council,12402,Premises,Public Convenience Cleaning,Electricity,23/01/2019,419389,21.52,N POWER,X00015,10,2018
Allerdale Borough Council,12402,Premises,Public Convenience Cleaning,Electricity,23/01/2019,419390,17.44,N POWER,X00015,10,2018
Allerdale Borough Council,12402,Premises,Public Convenience Cleaning,Electricity,23/01/2019,419391,92.38,N POWER,X00015,10,2018
Allerdale Borough Council,12402,Premises,Multi Storey Car Park Utilities & Maint,Electricity,23/01/2019,419392,6.09,N POWER,X00015,10,2018
Allerdale Borough Council,12402,Premises,Corporate Property Maintenance,Electricity,23/01/2019,419393,447.56,N POWER,X00015,10,2018
Allerdale Borough Council,12402,Premises,Public Convenience Cleaning,Electricity,23/01/2019,419394,5.59,N POWER,X00015,10,2018
Allerdale Borough Council,12402,Premises,Corporate Property Maintenance,Electricity,23/01/2019,419395,107.28,N POWER,X00015,10,2018
Allerdale Borough Council,12402,Premises,Corporate Property Maintenance,Electricity,23/01/2019,419396,13.74,N POWER,X00015,10,2018
Allerdale Borough Council,12402,Premises,Corporate Property Maintenance,Electricity,23/01/2019,419397,37.57,N POWER,X00015,10,2018
Allerdale Borough Council,12402,Premises,Corporate Property Maintenance,Electricity,23/01/2019,419398,7.12,N POWER,X00015,10,2018
Allerdale Borough Council,12402,Premises,Corporate Property Maintenance,Electricity,23/01/2019,419399,170.05,N POWER,X00015,10,2018
Allerdale Borough Council,12402,Premises,Corporate Property Maintenance,Electricity,23/01/2019,419400,101.04,N POWER,X00015,10,2018
Allerdale Borough Council,12402,Premises,Corporate Property Maintenance,Electricity,23/01/2019,419401,2.13,N POWER,X00015,10,2018
Allerdale Borough Council,12402,Premises,Public Convenience Cleaning,Electricity,23/01/2019,419402,2.78,N POWER,X00015,10,2018
Allerdale Borough Council,12402,Premises,Car Parks Inspection & Maintenance,Electricity,23/01/2019,419403,30.31,N POWER,X00015,10,2018
Allerdale Borough Council,12402,Premises,Corporate Property Maintenance,Electricity,23/01/2019,419404,46.38,N POWER,X00015,10,2018
Allerdale Borough Council,10604,Employee Costs,Chief Executive,Hire of Training Rooms/Venues,23/01/2019,419405,169.5,ST MICHAELS CHURCH WORKINGTON LTD,A00255,10,2018
Allerdale Borough Council,20101,Third Party Payments,Recycling,Cleansing Contract,23/01/2019,419406,30094.01,CUMBRIA WASTE MANAGEMENT LTD,A01304,10,2018
Allerdale Borough Council,20101,Third Party Payments,Recycling,Cleansing Contract,23/01/2019,419407,28416.48,CUMBRIA WASTE MANAGEMENT LTD,A01304,10,2018
Allerdale Borough Council,20304,Third Party Payments,Recycling,Contract Services-Recycling,23/01/2019,419408,378102.25,FCC ENVIRONMENT SERVICES (FOCSA),A00085,10,2018
Allerdale Borough Council,15101,Supplies & Services,Off-street - Owned,Equipment Costs,06/02/2019,419409,111,METRIC GROUP LTD,A00568,10,2018
Allerdale Borough Council,12101,Premises,Coastal Protection and Inland Flooding,External Maintenance & Decoration,23/01/2019,419410,1693,ASHCROFT PLANT (CUMBRIA) LTD,C00018,10,2018
Allerdale Borough Council,21150,Transfer Payments,Corporate Priorities,General Grants,23/01/2019,419411,2500,BOTTOM UP SOLUTIONS LTD,A02586,10,2018
Allerdale Borough Council,14101,Transport,Allerdale Fleet,Vehicle Leasing,06/02/2019,419412,139.5,DAYS FLEET,A02515,10,2018
Allerdale Borough Council,14101,Transport,Allerdale Fleet,Vehicle Leasing,06/02/2019,419413,139.5,DAYS FLEET,A02515,10,2018
Allerdale Borough Council,15506,Supplies & Services,Universal Credit,Professional Services,23/01/2019,419414,250,CITIZENS ADVICE BUREAU,A01181,10,2018
Allerdale Borough Council,12101,Premises,Corporate Property Maintenance,External Maintenance & Decoration,23/01/2019,419415,5093,THOMAS ARMSTRONG CONSTRUCTION,C00003,10,2018
Allerdale Borough Council,14101,Transport,Pest Control,Vehicle Leasing,23/01/2019,419416,-956,VOLKSWAGEN GROUP LEASING,A01239,10,2018
Allerdale Borough Council,15804,Supplies & Services,IT Services,Computer Data Lines B.T.,23/01/2019,419417,18514.01,BRITISH TELECOMMUNICATIONS,X00004,10,2018
Allerdale Borough Council,15506,Supplies & Services,Sports Development,Professional Services,23/01/2019,419418,3267,GREENWICH LEISURE LTD,A00136,10,2018
Allerdale Borough Council,16350,Supplies & Services,Allerdale Options,Miscellaneous Expenses,30/01/2019,419419,900,FIRPRESS PRINTERS,A00063,10,2018
Allerdale Borough Council,12203,Premises,Multi Storey Car Park Utilities & Maint,Plumbing and Heating Maintenance,23/01/2019,419420,952,Redacted information - included personal information ,C00008,10,2018
Allerdale Borough Council,16300,Supplies & Services,Tourism Incentive,Budget-Miscellaneous,06/02/2019,419421,7500,NEWSQUEST MEDIA GROUP,A02348,10,2018
Allerdale Borough Council,16101,Supplies & Services,Planning and Development,Statutory Notices,06/02/2019,419422,437.5,NEWSQUEST MEDIA GROUP,A02348,10,2018
Allerdale Borough Council,16101,Supplies & Services,Planning and Development,Statutory Notices,06/02/2019,419423,296.25,NEWSQUEST MEDIA GROUP,A02348,10,2018
Allerdale Borough Council,10204,Employee Costs,Allerdale Options,Staff Reward Payments,23/01/2019,419424,31.25,CARNEGIE THEATRE TRUST,R00015,10,2018
Allerdale Borough Council,16350,Supplies & Services,Corporate Management,Miscellaneous Expenses,11/01/2019,419425,18265,JELF INSURANCE BROKERS LTD,A02549,10,2018
Allerdale Borough Council,12101,Premises,Multi Storey Car Park Utilities & Maint,External Maintenance & Decoration,23/01/2019,419426,140,MARYPORT CAR CENTRE,A00510,10,2018
Allerdale Borough Council,12307,Premises,Corporate Property Maintenance,Fixtures and Fittings,06/02/2019,419427,390,KONE PLC,C00201,10,2018
Allerdale Borough Council,14104,Transport,Property Services Pay Group,Repairs & Maintenance,,419428,252.5,BARCLAYCARD COMMERCIAL ,X00207,10,2018
Allerdale Borough Council,15502,Supplies & Services,Legal Services,Land Registry Fees,22/01/2019,419429,33,HM LAND REGISTRY,A00505,10,2018
Allerdale Borough Council,12202,Premises,Corporate Property Maintenance,Electrical Repairs and Service,30/01/2019,419430,650.9,JJ GROUP (CONTRACTING) LTD,C00038,10,2018
Allerdale Borough Council,15501,Supplies & Services,Building Control - Non-Chargeable,Consultants Fees,30/01/2019,419431,802,ASHCROFT DEMOLITION (CUMBRIA) LTD,C00197,10,2018
Allerdale Borough Council,15501,Supplies & Services,Building Control - Non-Chargeable,Consultants Fees,30/01/2019,419432,975,ASHCROFT DEMOLITION (CUMBRIA) LTD,C00197,10,2018
Allerdale Borough Council,10201,Employee Costs,Building Control Pay Group,Long Service Awards,23/01/2019,419433,260,Redacted information - included personal information ,M01563,10,2018
Allerdale Borough Council,33112,Income,Planning and Development,Planning Fees Income,30/01/2019,419434,462,J DIXON & SON LTD,M01564,10,2018
Allerdale Borough Council,10601,Employee Costs,Training,External Courses & Seminar Fees,30/01/2019,419435,3075,FOCUS ON TRAINING,A02610,10,2018
Allerdale Borough Council,15810,Supplies & Services,Domestic Waste,Software Licences,,419436,1336.43,PHOENIX SOFTWARE LTD,A00229,10,2018
Allerdale Borough Council,14200,Transport,Members Services,Budget-Travel,30/01/2019,419437,180,REAYS COACHES LTD,A01280,10,2018
Allerdale Borough Council,15508,Supplies & Services,Pest Control,Subscriptions,30/01/2019,419438,20,BASIS (REGISTRATION) LTD,A01568,10,2018
Allerdale Borough Council,15501,Supplies & Services,Arts Development,Consultants Fees,30/01/2019,419439,1990,TGMS LIMITED,A02392,10,2018
Allerdale Borough Council,15101,Supplies & Services,Recycling,Equipment Costs,,419440,6732,A & C WEBER UK LIMITED,A02372,10,2018
Allerdale Borough Council,20150,Third Party Payments,Footway Lighting Scheme,General Partnership Service Fees,30/01/2019,419441,7174.43,CUMBRIA CC ,A00066,10,2018
Allerdale Borough Council,12301,Premises,Corporate Property Maintenance,Security,30/01/2019,419442,90,COMPASS SERVICES GROUP,A00839,10,2018
Allerdale Borough Council,20150,Third Party Payments,Managed Car Parks,General Partnership Service Fees,30/01/2019,419443,3029.85,MARYPORT HARBOUR & MARINA LIMITED,A00186,10,2018
Allerdale Borough Council,20150,Third Party Payments,Managed Car Parks,General Partnership Service Fees,30/01/2019,419444,67601.15,E H BOOTH & CO LIMITED,A00919,10,2018
Allerdale Borough Council,15302,Supplies & Services,Estates,Protective Clothing,,419445,37.69,ARCO LIMITED,A00045,10,2018
Allerdale Borough Council,12101,Premises,Corporate Property Maintenance,External Maintenance & Decoration,30/01/2019,419446,172,JOHN ELLIOTT LIMITED,C00023,10,2018
Allerdale Borough Council,12101,Premises,Car Parks Inspection & Maintenance,External Maintenance & Decoration,30/01/2019,419447,798,JOHN ELLIOTT LIMITED,C00023,10,2018
Allerdale Borough Council,12101,Premises,Car Parks Inspection & Maintenance,External Maintenance & Decoration,30/01/2019,419448,798,JOHN ELLIOTT LIMITED,C00023,10,2018
Allerdale Borough Council,16102,Supplies & Services,Destination Allerdale Virtual Reality Pr,Regeneration Initiatives,30/01/2019,419449,19712.07,FLUID PRODUCTIONS LIMITED,A02009,10,2018
Allerdale Borough Council,16300,Supplies & Services,Homelessness,Budget-Miscellaneous,,419450,1901.14,BARCLAYCARD COMMERCIAL,X00207,10,2018
Allerdale Borough Council,15301,Supplies & Services,Workington Nature Partnership,Uniforms,,419451,112.26,BARCLAYCARD COMMERCIAL,X00207,10,2018
Allerdale Borough Council,15508,Supplies & Services,Legal Services,Subscriptions,,419452,364,BARCLAYCARD COMMERCIAL,X00207,10,2018
Allerdale Borough Council,15302,Supplies & Services,Property Services Pay Group,Protective Clothing,06/02/2019,419453,220.55,KELTIC,A00017,10,2018
Allerdale Borough Council,20150,Third Party Payments,Footways,General Partnership Service Fees,,419454,926,ELECTRICITY NORTH WEST LTD,A00471,10,2018
Allerdale Borough Council,20150,Third Party Payments,Footways,General Partnership Service Fees,,419455,926,ELECTRICITY NORTH WEST LTD,A00471,10,2018
Allerdale Borough Council,14202,Transport,Chief Executive,Hire Car and petrol,30/01/2019,419456,108.41,ENTERPRISE RENT A CAR,A01367,10,2018
Allerdale Borough Council,15601,Supplies & Services,Corporate Postage and Stationary,Postage,30/01/2019,419457,40,ROYAL MAIL LETTERS,X00021,10,2018
Allerdale Borough Council,12403,Premises,Homelessness,Gas,30/01/2019,419458,234.71,NPOWER,X00277,10,2018
Allerdale Borough Council,15601,Supplies & Services,Corporate Postage and Stationary,Postage,30/01/2019,419459,33.57,ROYAL MAIL LETTERS,X00021,10,2018
Allerdale Borough Council,10401,Employee Costs,Environmental Protection,Agency Staff Costs,,419460,258.4,HAYS SPECIALIST RECRUITMENT LTD,A00280,10,2018
Allerdale Borough Council,15501,Supplies & Services,Strategic Priorities,Consultants Fees,30/01/2019,419461,48600,BLOOM PROCUREMENT SERVICES LTD,A02360,10,2018
Allerdale Borough Council,10601,Employee Costs,Finance and Accounting Pay Group,External Courses & Seminar Fees,30/01/2019,419462,330,CUMBRIA CONSTABULARY,A00895,10,2018
Allerdale Borough Council,15506,Supplies & Services,Food and Occupational Health,Professional Services,30/01/2019,419463,235,MPM NORTH WEST LIMITED,A00113,10,2018
Allerdale Borough Council,10601,Employee Costs,Training,External Courses & Seminar Fees,30/01/2019,419464,57.96,ENTERPRISE RENT A CAR,A01367,10,2018
Allerdale Borough Council,15601,Supplies & Services,Corporate Postage and Stationary,Postage,30/01/2019,419465,713.55,UK MAIL GROUP PLC,A02371,10,2018
Allerdale Borough Council,15101,Supplies & Services,Multi Storey Car Park Utilities & Maint,Equipment Costs,30/01/2019,419466,114.87,WF HYGIENE & CLEANING SUPPLIES,A01794,10,2018
Allerdale Borough Council,12100,Premises,Sports Development,Budget-External Maintenance & Decoration,30/01/2019,419467,5500,WEST COAST THERMAL LIMITED,C00040,10,2018
Allerdale Borough Council,21150,Transfer Payments,Carnegie Trust Contribution,General Grants,30/01/2019,419468,8750,CARNEGIE THEATRE TRUST,R00015,10,2018
Allerdale Borough Council,15507,Supplies & Services,Land Charges Service,Searches,30/01/2019,419469,828,CUMBRIA CC,A00066,10,2018
Allerdale Borough Council,20300,Third Party Payments,Parks and Grounds Maintenance,Budget-Contract Services,,419470,56935.33,TIVOLI GROUP LTD,A02568,10,2018
Allerdale Borough Council,12405,Premises,Customer Services Pay Group,Rentals and Lease Charges,30/01/2019,419471,591.94,SOLWAY PLAIN FUTURES LTD,A01194,10,2018
Allerdale Borough Council,26000,Earmarked Reserves,Transfer of Land Charges Data,Budget-Expd funded from Reserve,30/01/2019,419472,583.12,ADECCO RECRUITMENT,A00188,10,2018
Allerdale Borough Council,26000,Earmarked Reserves,Transfer of Land Charges Data,Budget-Expd funded from Reserve,30/01/2019,419473,571.3,ADECCO RECRUITMENT,A00188,10,2018
Allerdale Borough Council,12202,Premises,Corporate Property Maintenance,Electrical Repairs and Service,30/01/2019,419474,850,JJ GROUP (CONTRACTING) LTD,C00038,10,2018
Allerdale Borough Council,12403,Premises,Corporate Property Maintenance,Gas,30/01/2019,419475,42.85,BRITISH GAS ,X00039,10,2018
Allerdale Borough Council,12403,Premises,Corporate Property Maintenance,Gas,30/01/2019,419476,45.98,BRITISH GAS ,X00039,10,2018
Allerdale Borough Council,12403,Premises,Corporate Property Maintenance,Gas,30/01/2019,419477,49.12,BRITISH GAS ,X00039,10,2018
Allerdale Borough Council,12403,Premises,Corporate Property Maintenance,Gas,30/01/2019,419478,47.55,BRITISH GAS ,X00039,10,2018
Allerdale Borough Council,12403,Premises,Corporate Property Maintenance,Gas,30/01/2019,419479,36.58,BRITISH GAS ,X00039,10,2018
Allerdale Borough Council,12403,Premises,Corporate Property Maintenance,Gas,30/01/2019,419480,31.66,BRITISH GAS ,X00040,10,2018
Allerdale Borough Council,12403,Premises,Corporate Property Maintenance,Gas,30/01/2019,419481,325.16,CORONA ENERGY,X00003,10,2018
Allerdale Borough Council,12403,Premises,Corporate Property Maintenance,Gas,30/01/2019,419482,651.25,CORONA ENERGY,X00003,10,2018
Allerdale Borough Council,12403,Premises,Corporate Property Maintenance,Gas,30/01/2019,419483,519.48,CORONA ENERGY,X00003,10,2018
Allerdale Borough Council,12403,Premises,Corporate Property Maintenance,Gas,30/01/2019,419484,196.68,CORONA ENERGY,X00003,10,2018
Allerdale Borough Council,12403,Premises,Corporate Property Maintenance,Gas,30/01/2019,419485,305.56,CORONA ENERGY,X00003,10,2018
Allerdale Borough Council,12403,Premises,Corporate Property Maintenance,Gas,30/01/2019,419486,74.52,CORONA ENERGY,X00003,10,2018
Allerdale Borough Council,12403,Premises,Corporate Property Maintenance,Gas,30/01/2019,419487,343.46,CORONA ENERGY,X00003,10,2018
Allerdale Borough Council,12403,Premises,Corporate Property Maintenance,Gas,30/01/2019,419488,21.42,BRITISH GAS ,X00039,10,2018
Allerdale Borough Council,15811,Supplies & Services,IT Services,Software Maintenance,29/01/2019,419489,317,SAGE (UK) LTD ,A01911,10,2018
Allerdale Borough Council,15811,Supplies & Services,ICT Infrastructure Costs,Software Maintenance,,419490,1985.01,SOFTCAT PLC,A02520,10,2018
Allerdale Borough Council,26000,Earmarked Reserves,Licensing Service,Budget-Expd funded from Reserve,30/01/2019,419491,232.46,ADECCO RECRUITMENT,A00188,10,2018
Allerdale Borough Council,26000,Earmarked Reserves,Licensing Service,Budget-Expd funded from Reserve,30/01/2019,419492,378.24,ADECCO RECRUITMENT,A00188,10,2018
Allerdale Borough Council,15811,Supplies & Services,IT Services,Software Maintenance,,419493,19314.81,THE NETWORKING PEOPLE (NORTHWEST) LTD,A02622,10,2018
Allerdale Borough Council,15506,Supplies & Services,Food and Occupational Health,Professional Services,30/01/2019,419494,165,GALEMIRE VETERINARY HOSPITAL LIMITED,A00328,10,2018
Allerdale Borough Council,16101,Supplies & Services,Planning and Development,Statutory Notices,,419495,402.5,NEWSQUEST MEDIA GROUP,A02348,10,2018
Allerdale Borough Council,16101,Supplies & Services,Planning and Development,Statutory Notices,,419496,276.5,NEWSQUEST MEDIA GROUP,A02348,10,2018
Allerdale Borough Council,12201,Premises,Corporate Property Maintenance,Internal Maintenance,30/01/2019,419497,742,Redacted information - included personal information ,C00008,10,2018
Allerdale Borough Council,16350,Supplies & Services,Chief Executive,Miscellaneous Expenses,,419498,267.13,BARCLAYCARD COMMERCIAL,X00207,10,2018
Allerdale Borough Council,10703,Employee Costs,Off-street - Managed,Compensation Payments,30/01/2019,419499,50,Redacted information - included personal information ,M01565,10,2018
Allerdale Borough Council,12201,Premises,Corporate Property Maintenance,Internal Maintenance,30/01/2019,419500,548,Redacted information - included personal information ,A01607,10,2018
Allerdale Borough Council,12101,Premises,Coastal Protection and Inland Flooding,External Maintenance & Decoration,30/01/2019,419501,853.68,STOBBARTS LIMITED,C00204,10,2018
Allerdale Borough Council,15804,Supplies & Services,IT Services,Computer Data Lines B.T.,30/01/2019,419502,8885,CARLISLE CITY COUNCIL,A00161,10,2018
Allerdale Borough Council,33112,Income,Planning and Development,Planning Fees Income,30/01/2019,419503,234,PORTAL PLAN QUEST LTD,M01566,10,2018
Allerdale Borough Council,33112,Income,Planning and Development,Planning Fees Income,30/01/2019,419504,116,PORTAL PLAN QUEST LTD,M01566,10,2018
Allerdale Borough Council,33112,Income,Planning and Development,Planning Fees Income,30/01/2019,419505,132,PORTAL PLAN QUEST LTD,M01566,10,2018
Allerdale Borough Council,15506,Supplies & Services,Environmental Protection,Professional Services,30/01/2019,419519,2117.84,UNITED UTILITIES PLC,A01657,10,2018
Allerdale Borough Council,15506,Supplies & Services,Environmental Protection,Professional Services,,419520,1264.2,UNITED UTILITIES PLC,A01657,10,2018
Allerdale Borough Council,12101,Premises,Corporate Property Maintenance,External Maintenance & Decoration,30/01/2019,419521,1105,S K DRAINAGE SOLUTIONS LTD,A02612,10,2018
Allerdale Borough Council,12101,Premises,Corporate Property Maintenance,External Maintenance & Decoration,30/01/2019,419522,1242.3,TAYLOR'S JOINERY & PLASTICS LTD,C00181,10,2018
Allerdale Borough Council,15803,Supplies & Services,IT Costs (Allerdale Only),Hardware Purchase,,419523,4449.6,INSIGHT DIRECT (UK) LTD,A00054,10,2018
Allerdale Borough Council,15803,Supplies & Services,IT Services,Hardware Purchase,,419524,496.55,PCM TECHNOLOGY SOLUTIONS UK LTD,A02526,10,2018
Allerdale Borough Council,15811,Supplies & Services,IT Services,Software Maintenance,30/01/2019,419525,717,SAGE (UK) LTD ,A01911,10,2018
Allerdale Borough Council,15506,Supplies & Services,Communications and Marketing,Professional Services,,419526,1200,BIRCHAM DYSON BELL LLP,A02323,10,2018
Allerdale Borough Council,14105,Transport,Property Services Pay Group,"Fuel, Lubricants & Consumables",30/01/2019,419527,450.43,BP OIL UK LTD,X00022,10,2018
Allerdale Borough Council,14105,Transport,Allerdale Fleet,"Fuel, Lubricants & Consumables",30/01/2019,419528,96.91,BP OIL UK LTD,X00022,10,2018
Allerdale Borough Council,14105,Transport,Allerdale Fleet,"Fuel, Lubricants & Consumables",,419529,96.73,BP OIL UK LTD,X00022,10,2018
Allerdale Borough Council,14105,Transport,Property Services Pay Group,"Fuel, Lubricants & Consumables",,419530,564.54,BP OIL UK LTD,X00022,10,2018
Allerdale Borough Council,14105,Transport,Property Services Pay Group,"Fuel, Lubricants & Consumables",,419531,373.57,BP OIL UK LTD,X00022,10,2018
Allerdale Borough Council,14105,Transport,Property Services Pay Group,"Fuel, Lubricants & Consumables",,419532,383.19,BP OIL UK LTD,X00022,10,2018
Allerdale Borough Council,15506,Supplies & Services,Food and Occupational Health,Professional Services,,419533,180,PUBLIC HEALTH ENGLAND,A01839,10,2018
Allerdale Borough Council,15604,Supplies & Services,Corporate Postage and Stationary,Franking Machine refills,30/01/2019,419534,4000,FP TELESET,A00428,10,2018
Allerdale Borough Council,15506,Supplies & Services,Communications and Marketing,Professional Services,06/02/2019,419535,80,JIM DAVIS PHOTOGRAPHY,A00627,10,2018
Allerdale Borough Council,10114,Employee Costs,"Business Support Unit, Devt Services",Agency to Cover Established Post,30/01/2019,419536,248.22,ADECCO RECRUITMENT,A00188,10,2018
Allerdale Borough Council,10114,Employee Costs,"Business Support Unit, Devt Services",Agency to Cover Established Post,30/01/2019,419537,354.6,ADECCO RECRUITMENT,A00188,10,2018
Allerdale Borough Council,15601,Supplies & Services,Electoral Registration,Postage,30/01/2019,419538,154.35,ROYAL MAIL LETTERS,X00021,10,2018
Allerdale Borough Council,15804,Supplies & Services,IT Services,Computer Data Lines B.T.,30/01/2019,419539,4015.5,BRITISH TELECOMMUNICATIONS,X00004,10,2018
Allerdale Borough Council,12501,Premises,Corporate Property Maintenance,NNDR and Other Occupancy Charges,30/01/2019,419540,88.4,ALLERDALE,A00342,10,2018
Allerdale Borough Council,12501,Premises,Corporate Property Maintenance,NNDR and Other Occupancy Charges,30/01/2019,419541,88.4,ALLERDALE ,A00342,10,2018
Allerdale Borough Council,15101,Supplies & Services,Public Building Cleaning,Equipment Costs,06/02/2019,419542,524.28,INSTOCK (CHANDLERS),A00050,10,2018
Allerdale Borough Council,14202,Transport,Food and Occupational Health,Hire Car and petrol,30/01/2019,419543,51.73,ENTERPRISE RENT A CAR,A01367,10,2018
Allerdale Borough Council,15201,Supplies & Services,Leaders Services,Entertainment Of Visitors,30/01/2019,419544,71.24,ALLERDALE BOROUGH COUNCIL,X00034,10,2018
Allerdale Borough Council,15550,Supplies & Services,Arts Development,General-Service Related Fees,30/01/2019,419545,1450,ROSEHILL THEATRE,M01567,10,2018
Allerdale Borough Council,54105,Capital Expenditure,Discretionary Grants,Grants  Private Individuals (Capital),30/01/2019,419546,5545,FEARON BUILDERS,C00069,10,2018
Allerdale Borough Council,54105,Capital Expenditure,Disabled Facilities Grants,Grants  Private Individuals (Capital),30/01/2019,419547,6560.75,FEARON BUILDERS,C00069,10,2018
Allerdale Borough Council,12402,Premises,Food and Occupational Health,Electricity,30/01/2019,419548,11.14,BRITISH GAS ,X00039,10,2018
Allerdale Borough Council,12402,Premises,Food and Occupational Health,Electricity,30/01/2019,419549,10.54,BRITISH GAS ,X00039,10,2018
Allerdale Borough Council,15101,Supplies & Services,Public Building Cleaning,Equipment Costs,06/02/2019,419550,109.34,WF HYGIENE & CLEANING SUPPLIES,A01794,10,2018
Allerdale Borough Council,15400,Supplies & Services,Communications and Marketing,"Budget-Printing,Stationery & Office Supp",06/02/2019,419551,200,FIRPRESS PRINTERS,A00063,10,2018
Allerdale Borough Council,15101,Supplies & Services,Food and Occupational Health,Equipment Costs,,419552,30,PUBLIC HEALTH ENGLAND,A01839,10,2018
Allerdale Borough Council,15804,Supplies & Services,IT Services,Computer Data Lines B.T.,30/01/2019,419553,45,VAIONI GROUP LTD,A02471,10,2018
Allerdale Borough Council,15402,Supplies & Services,IT Services - Corporate Printers,Photocopier Charges,06/02/2019,419554,103.17,KONICA MINOLTA BUSINESS SOLUTIONS UK LTD,A01556,10,2018
Allerdale Borough Council,15402,Supplies & Services,Multi-functional Printers,Photocopier Charges,06/02/2019,419555,6.31,KONICA MINOLTA BUSINESS SOLUTIONS UK LTD,A01556,10,2018
Allerdale Borough Council,15402,Supplies & Services,Multi-functional Printers,Photocopier Charges,06/02/2019,419556,2251.25,KONICA MINOLTA BUSINESS SOLUTIONS UK LTD,A01556,10,2018
Allerdale Borough Council,15402,Supplies & Services,IT Services - Corporate Printers,Photocopier Charges,06/02/2019,419557,1605.69,KONICA MINOLTA BUSINESS SOLUTIONS UK LTD,A01556,10,2018
Allerdale Borough Council,15101,Supplies & Services,Recycling,Equipment Costs,,419558,9854.73,JPK TRADE SUPPLIES LTD,A02557,10,2018
Allerdale Borough Council,75103,Holding and Control Accounts,Payroll Suspense Account,PAYROLL January 2019 Travel & Subsistence  ,,,10577.00,INLAND REVENUE,X00038,10,2018
